[Event "European Online Club-ch-E 2021"]
[Site "Online"]
[Date "2021.03.27"]
[Round "8.5"]
[White "Guseinov, Gadir"]
[Black "Pavlidis, Antonios"]
[Result "1/2-1/2"]
[ECO "C69"]
[WhiteElo "2665"]
[BlackElo "2536"]
[Annotator "ChessBase"]
[PlyCount "80"]
[EventDate "2021.03.27"]
[EventType "team-tourn"]
[EventCountry "NET"]
[SourceTitle "playchess.com"]
[Source "ChessBase"]
[SourceQuality "1"]
[TimeControl "900+5"]

1. e4 {[%emt 0:00:00]} e5 {[%emt 0:00:03]} 2. Nf3 {[%emt 0:00:03]} Nc6 {[%emt 0:00:01]} 3. Bb5 {[%emt 0:00:02]} a6 {[%emt 0:00:02]} 4. Bxc6 {[%emt 0:00:02]} dxc6 {[%emt 0:00:01]} 5. O-O {[%emt 0:00:02]} f6 {[%emt 0:00:02]} 6. d4 {[%emt 0:00:02]} exd4 {[%emt 0:00:01]} 7. Nxd4 {[%emt 0:00:02]} c5 {[%emt 0:00:02]} 8. Nb3 {[%emt 0:00:01]} Qxd1 {[%emt 0:00:02]} 9. Rxd1 {[%emt 0:00:02]} Be6 {[%emt 0:00:03]} 10. Bf4 {[%emt 0:00:11]} c4 {[%emt 0:00:03]} 11. Na5 {[%emt 0:00:35]} b6 {[%emt 0:00:03]} 12. Nc6 {[%emt 0:00:03]} Bd7 {[%emt 0:00:02]} 13. Nd4 {[%emt 0:00:05]} O-O-O {[%emt 0:00:01]} 14. Nc3 {[%emt 0:00:04]} Ne7 {[%emt 0:01:05]} 15. a3 {[%emt 0:00:09]} h5 {[%emt 0:00:10]} 16. Rd2 {[%emt 0:00:22]} Ng6 {[%emt 0:03:17]} 17. Be3 {[%emt 0:00:04]} Bd6 {[%emt 0:00:02]} 18. Rad1 {[%emt 0:00:20]} Kb7 {[%emt 0:00:50]} 19. f3 {[%emt 0:00:14]} Rde8 {[%emt 0:00:29]} 20. Nde2 {[%emt 0:00:08]} Bc6 {[%emt 0:00:29]} 21. Nd4 {[%emt 0:00:14]} Bd7 {[%emt 0:00:03]} 22. Nd5 {[%emt 0:00:46]} Ne7 {[%emt 0:00:05]} 23. Nxe7 {[%emt 0:02:04]} Rxe7 {[%emt 0:00:04]} 24. Ne2 {[%emt 0:00:01]} f5 {[%emt 0:01:43]} 25. Rxd6 {[%emt 0:00:16]} cxd6 {[%emt 0:00:11]} 26. Rxd6 {[%emt 0:00:02]} fxe4 {[%emt 0:00:30]} 27. Rxb6+ {[%emt 0:00:19]} Kc7 {[%emt 0:00:03]} 28. Nf4 {[%emt 0:00:19]} Bc6 {[%emt 0:00:49]} 29. Ng6 {[%emt 0:00:07]} Ree8 {[%emt 0:00:02]} 30. Nxh8 {[%emt 0:00:56]} exf3 {[%emt 0:00:21]} 31. Bf2 {[%emt 0:00:04]} Rxh8 {[%emt 0:00:32]} 32. gxf3 {[%emt 0:00:04]} Rb8 {[%emt 0:00:25]} 33. Rxb8 {[%emt 0:00:40]} Kxb8 {[%emt 0:00:03]} 34. Kg2 {[%emt 0:00:01]} g6 {[%emt 0:00:13]} 35. Kg3 {[%emt 0:00:05]} Ba4 {[%emt 0:00:07]} 36. c3 {[%emt 0:00:05]} Kb7 {[%emt 0:00:02]} 37. Kf4 {[%emt 0:00:02]} Kc6 {[%emt 0:00:02]} 38. Ke5 {[%emt 0:00:01]} Bc2 {[%emt 0:00:09]} 39. Kd4 {[%emt 0:00:02]} Kb5 {[%emt 0:00:02]} 40. h4 {[%emt 0:00:17]} a5 {[%emt 0:00:03]} 1/2-1/2

[Event "European Online Club-ch-E 2021"]
[Site "Online"]
[Date "2021.03.27"]
[Round "8.6"]
[White "Kanakaris, Georgios"]
[Black "Abasov, Nijat"]
[Result "0-1"]
[ECO "B20"]
[WhiteElo "2400"]
[BlackElo "2664"]
[Annotator "ChessBase"]
[PlyCount "76"]
[EventDate "2021.03.27"]
[EventType "team-tourn"]
[EventCountry "NET"]
[SourceTitle "playchess.com"]
[Source "ChessBase"]
[SourceQuality "1"]
[TimeControl "900+5"]

1. e4 {[%emt 0:00:00]} c5 {[%emt 0:00:02]} 2. b4 {[%emt 0:00:02]} b6 {[%emt 0:00:11]} 3. bxc5 {[%emt 0:00:19]} bxc5 {[%emt 0:00:00]} 4. Nc3 {[%emt 0:00:02]} Nc6 {[%emt 0:00:06]} 5. Nf3 {[%emt 0:00:03]} g6 {[%emt 0:00:18]} 6. Bc4 {[%emt 0:02:34]} Bg7 {[%emt 0:00:22]} 7. Rb1 {[%emt 0:00:20]} Nh6 {[%emt 0:01:36]} 8. O-O {[%emt 0:01:27]} O-O {[%emt 0:00:04]} 9. Bd5 {[%emt 0:00:35]} Ba6 {[%emt 0:00:22]} 10. Bxc6 {[%emt 0:00:27]} dxc6 {[%emt 0:00:00]} 11. Re1 {[%emt 0:00:02]} Ng4 {[%emt 0:00:14]} 12. h3 {[%emt 0:02:53]} Ne5 {[%emt 0:00:06]} 13. Nxe5 {[%emt 0:00:15]} Bxe5 {[%emt 0:00:00]} 14. Bb2 {[%emt 0:00:38]} Qa5 {[%emt 0:00:31]} 15. Ba1 {[%emt 0:00:22]} Rfd8 {[%emt 0:00:41]} 16. Qc1 {[%emt 0:00:51]} Bd4 {[%emt 0:00:28]} 17. e5 {[%emt 0:01:32]} Bc4 {[%emt 0:00:02]} 18. Ne4 {[%emt 0:00:16]} Rab8 {[%emt 0:02:10]} 19. Rxb8 {[%emt 0:00:27]} Rxb8 {[%emt 0:00:00]} 20. Bxd4 {[%emt 0:00:17]} cxd4 {[%emt 0:00:00]} 21. d3 {[%emt 0:00:02]} Bxa2 {[%emt 0:00:06]} 22. Qa1 {[%emt 0:00:13]} Qxe1+ {[%emt 0:00:16]} 23. Qxe1 {[%emt 0:00:00]} Rb1 {[%emt 0:00:02]} 24. Kf1 {[%emt 0:00:11]} Rxe1+ {[%emt 0:00:20]} 25. Kxe1 {[%emt 0:00:00]} Bd5 {[%emt 0:00:01]} 26. Nc5 {[%emt 0:00:07]} Bxg2 {[%emt 0:00:05]} 27. Nb3 {[%emt 0:00:03]} Bxh3 {[%emt 0:00:14]} 28. Nxd4 {[%emt 0:00:02]} Bd7 {[%emt 0:00:17]} 29. Nb3 {[%emt 0:00:05]} h5 {[%emt 0:00:12]} 30. f4 {[%emt 0:00:03]} f6 {[%emt 0:00:11]} 31. exf6 {[%emt 0:00:04]} exf6 {[%emt 0:00:00]} 32. Nc5 {[%emt 0:00:06]} Bf5 {[%emt 0:00:06]} 33. Na6 {[%emt 0:00:07]} Kf7 {[%emt 0:01:07]} 34. Nb8 {[%emt 0:00:02]} c5 {[%emt 0:00:04]} 35. Na6 {[%emt 0:00:12]} c4 {[%emt 0:00:01]} 36. dxc4 {[%emt 0:00:00]} Bxc2 {[%emt 0:00:01]} 37. c5 {[%emt 0:00:01]} Be4 {[%emt 0:00:04]} 38. Nc7 {[%emt 0:00:07]} Bc6 {[%emt 0:00:05]} 0-1

[Event "European Online Club-ch-E 2021"]
[Site "Online"]
[Date "2021.03.27"]
[Round "8.7"]
[White "Durarbayli, Vasif"]
[Black "Koutlas, Nikolaos"]
[Result "1/2-1/2"]
[ECO "B32"]
[WhiteElo "2606"]
[BlackElo "2078"]
[Annotator "ChessBase"]
[PlyCount "80"]
[EventDate "2021.03.27"]
[EventType "team-tourn"]
[EventCountry "NET"]
[SourceTitle "playchess.com"]
[Source "ChessBase"]
[SourceQuality "1"]
[TimeControl "900+5"]

1. e4 {[%emt 0:00:00]} c5 {[%emt 0:00:03]} 2. Nf3 {[%emt 0:00:05]} Nc6 {[%emt 0:00:03]} 3. d4 {[%emt 0:00:09]} cxd4 {[%emt 0:00:02]} 4. Nxd4 {[%emt 0:00:02]} e5 {[%emt 0:00:01]} 5. Nb5 {[%emt 0:00:02]} d6 {[%emt 0:00:02]} 6. N1c3 {[%emt 0:00:03]} a6 {[%emt 0:00:04]} 7. Na3 {[%emt 0:00:01]} Be6 {[%emt 0:00:01]} 8. Nc4 {[%emt 0:00:18]} b5 {[%emt 0:00:03]} 9. Ne3 {[%emt 0:00:03]} Nf6 {[%emt 0:00:02]} 10. Bd3 {[%emt 0:00:09]} g6 {[%emt 0:00:25]} 11. a4 {[%emt 0:00:31]} b4 {[%emt 0:00:14]} 12. Ncd5 {[%emt 0:00:02]} Bg7 {[%emt 0:00:02]} 13. Nxf6+ {[%emt 0:00:25]} Bxf6 {[%emt 0:00:35]} 14. Bc4 {[%emt 0:00:37]} O-O {[%emt 0:01:09]} 15. Qd3 {[%emt 0:00:25]} Nd4 {[%emt 0:00:56]} 16. O-O {[%emt 0:00:40]} Bxc4 {[%emt 0:01:45]} 17. Nxc4 {[%emt 0:00:10]} Rc8 {[%emt 0:01:32]} 18. b3 {[%emt 0:02:19]} d5 {[%emt 0:00:41]} 19. exd5 {[%emt 0:00:03]} e4 {[%emt 0:00:04]} 20. Qxe4 {[%emt 0:02:31]} Re8 {[%emt 0:00:27]} 21. Qd3 {[%emt 0:00:04]} Ne2+ {[%emt 0:00:08]} 22. Kh1 {[%emt 0:00:01]} Bxa1 {[%emt 0:00:10]} 23. Be3 {[%emt 0:00:02]} Bd4 {[%emt 0:04:09]} 24. Qxe2 {[%emt 0:00:43]} Bxe3 {[%emt 0:00:03]} 25. fxe3 {[%emt 0:02:22]} Qxd5 {[%emt 0:00:07]} 26. Nb6 {[%emt 0:00:14]} Qe4 {[%emt 0:00:03]} 27. Nxc8 {[%emt 0:00:17]} Rxc8 {[%emt 0:00:00]} 28. Rf2 {[%emt 0:01:42]} Rc3 {[%emt 0:01:41]} 29. Qf3 {[%emt 0:02:06]} Qe6 {[%emt 0:00:57]} 30. h3 {[%emt 0:00:54]} Rxe3 {[%emt 0:00:09]} 31. Qf4 {[%emt 0:00:01]} a5 {[%emt 0:00:23]} 32. Kh2 {[%emt 0:00:05]} Qe5 {[%emt 0:00:31]} 33. Qxe5 {[%emt 0:00:02]} Rxe5 {[%emt 0:00:00]} 34. Rd2 {[%emt 0:00:01]} Rc5 {[%emt 0:00:06]} 35. Kg3 {[%emt 0:00:03]} Kg7 {[%emt 0:00:13]} 36. h4 {[%emt 0:00:03]} Kf6 {[%emt 0:00:06]} 37. Kf4 {[%emt 0:00:01]} h6 {[%emt 0:00:18]} 38. g4 {[%emt 0:00:03]} g5+ {[%emt 0:00:05]} 39. hxg5+ {[%emt 0:00:02]} hxg5+ {[%emt 0:00:00]} 40. Ke4 {[%emt 0:00:02]} Ke6 {[%emt 0:00:06]} 1/2-1/2

[Event "European Online Club-ch-E 2021"]
[Site "Online"]
[Date "2021.03.27"]
[Round "8.8"]
[White "Apostolakakis, Konstantinos"]
[Black "Safarli, Eltaj"]
[Result "0-1"]
[ECO "A48"]
[WhiteElo "2074"]
[BlackElo "2598"]
[Annotator "ChessBase"]
[PlyCount "66"]
[EventDate "2021.03.27"]
[EventType "team-tourn"]
[EventCountry "NET"]
[SourceTitle "playchess.com"]
[Source "ChessBase"]
[SourceQuality "1"]
[TimeControl "900+5"]

1. d4 {[%emt 0:00:00]} Nf6 {[%emt 0:00:04]} 2. Nf3 {[%emt 0:00:04]} g6 {[%emt 0:00:02]} 3. Bg5 {[%emt 0:00:03]} Bg7 {[%emt 0:00:02]} 4. c3 {[%emt 0:00:03]} O-O {[%emt 0:00:02]} 5. Nbd2 {[%emt 0:00:03]} d6 {[%emt 0:00:01]} 6. e4 {[%emt 0:00:04]} c5 {[%emt 0:00:01]} 7. dxc5 {[%emt 0:00:04]} dxc5 {[%emt 0:00:01]} 8. Be2 {[%emt 0:00:53]} Nc6 {[%emt 0:00:03]} 9. O-O {[%emt 0:00:15]} h6 {[%emt 0:00:01]} 10. Bh4 {[%emt 0:00:06]} Nh5 {[%emt 0:00:01]} 11. Re1 {[%emt 0:00:31]} Qc7 {[%emt 0:00:09]} 12. Qc2 {[%emt 0:00:06]} Bg4 {[%emt 0:00:18]} 13. a4 {[%emt 0:01:00]} b6 {[%emt 0:00:08]} 14. Nc4 {[%emt 0:00:32]} Nf4 {[%emt 0:00:11]} 15. Ne3 {[%emt 0:00:18]} Nxe2+ {[%emt 0:00:01]} 16. Qxe2 {[%emt 0:00:02]} Bxf3 {[%emt 0:01:10]} 17. Qxf3 {[%emt 0:00:04]} e6 {[%emt 0:00:09]} 18. Rad1 {[%emt 0:00:23]} Ne5 {[%emt 0:00:27]} 19. Qe2 {[%emt 0:00:12]} Qc6 {[%emt 0:00:46]} 20. Qc2 {[%emt 0:01:40]} c4 {[%emt 0:00:11]} 21. Re2 {[%emt 0:01:44]} Nd3 {[%emt 0:00:34]} 22. Bg3 {[%emt 0:03:27]} Rad8 {[%emt 0:03:26]} 23. Red2 {[%emt 0:00:33]} f5 {[%emt 0:00:51]} 24. exf5 {[%emt 0:01:24]} exf5 {[%emt 0:00:03]} 25. Nxc4 {[%emt 0:01:22]} Qxc4 {[%emt 0:00:04]} 26. Rxd3 {[%emt 0:00:04]} Rxd3 {[%emt 0:00:02]} 27. Rxd3 {[%emt 0:00:05]} f4 {[%emt 0:00:06]} 28. Bh4 {[%emt 0:00:42]} g5 {[%emt 0:00:15]} 29. Bxg5 {[%emt 0:00:46]} hxg5 {[%emt 0:00:04]} 30. Rh3 {[%emt 0:00:02]} Rd8 {[%emt 0:00:36]} 31. Qh7+ {[%emt 0:00:08]} Kf8 {[%emt 0:00:02]} 32. Qf5+ {[%emt 0:00:29]} Qf7 {[%emt 0:00:02]} 33. Qg4 {[%emt 0:00:09]} Qe6 {[%emt 0:00:14]} 0-1

[Event "European Online Club-ch-E 2021"]
[Site "Online"]
[Date "2021.03.27"]
[Round "8.9"]
[White "Oparin, Grigoriy"]
[Black "Dedebas, Emre Emin"]
[Result "1/2-1/2"]
[ECO "D21"]
[WhiteElo "2652"]
[BlackElo "2335"]
[Annotator "ChessBase"]
[PlyCount "60"]
[EventDate "2021.03.27"]
[EventType "team-tourn"]
[EventCountry "NET"]
[SourceTitle "playchess.com"]
[Source "ChessBase"]
[SourceQuality "1"]
[TimeControl "900+5"]

1. d4 {[%emt 0:00:00]} d5 {[%emt 0:00:06]} 2. c4 {[%emt 0:00:02]} dxc4 {[%emt 0:00:01]} 3. Nf3 {[%emt 0:00:02]} c5 {[%emt 0:00:01]} 4. e3 {[%emt 0:00:09]} cxd4 {[%emt 0:00:01]} 5. exd4 {[%emt 0:00:02]} Be6 {[%emt 0:00:03]} 6. Nc3 {[%emt 0:00:21]} Nf6 {[%emt 0:00:05]} 7. Bg5 {[%emt 0:00:32]} Nd5 {[%emt 0:00:22]} 8. Be2 {[%emt 0:00:53]} Nc6 {[%emt 0:01:07]} 9. O-O {[%emt 0:00:02]} h6 {[%emt 0:00:05]} 10. Bd2 {[%emt 0:00:13]} Nxc3 {[%emt 0:00:20]} 11. bxc3 {[%emt 0:00:16]} Bd5 {[%emt 0:00:12]} 12. Bf4 {[%emt 0:00:07]} e6 {[%emt 0:00:09]} 13. Nd2 {[%emt 0:00:03]} b5 {[%emt 0:03:49]} 14. a4 {[%emt 0:00:03]} a6 {[%emt 0:00:09]} 15. Qb1 {[%emt 0:00:11]} b4 {[%emt 0:01:10]} 16. Nxc4 {[%emt 0:04:43]} bxc3 {[%emt 0:01:45]} 17. Qd3 {[%emt 0:00:02]} Bb4 {[%emt 0:00:49]} 18. Ne3 {[%emt 0:00:13]} O-O {[%emt 0:00:32]} 19. a5 {[%emt 0:00:46]} Bxa5 {[%emt 0:02:27]} 20. Nxd5 {[%emt 0:00:19]} exd5 {[%emt 0:00:13]} 21. Ra4 {[%emt 0:00:18]} Qf6 {[%emt 0:01:16]} 22. Be5 {[%emt 0:00:17]} Qg6 {[%emt 0:00:10]} 23. Qf3 {[%emt 0:00:10]} Rfd8 {[%emt 0:00:53]} 24. Bd3 {[%emt 0:00:08]} Qe6 {[%emt 0:00:03]} 25. Bc2 {[%emt 0:00:48]} Bb6 {[%emt 0:00:17]} 26. Rb1 {[%emt 0:01:33]} Nxe5 {[%emt 0:00:14]} 27. dxe5 {[%emt 0:00:02]} Bc5 {[%emt 0:00:24]} 28. Qxc3 {[%emt 0:00:11]} Rac8 {[%emt 0:00:04]} 29. Qd3 {[%emt 0:00:05]} g6 {[%emt 0:00:07]} 30. Rxa6 {[%emt 0:00:22]} Qxe5 {[%emt 0:00:09]} 1/2-1/2

[Event "European Online Club-ch-E 2021"]
[Site "Online"]
[Date "2021.03.27"]
[Round "8.10"]
[White "Angun, Batu"]
[Black "Moussard, Jules"]
[Result "0-1"]
[ECO "D85"]
[WhiteElo "2326"]
[BlackElo "2635"]
[Annotator "ChessBase"]
[PlyCount "92"]
[EventDate "2021.03.27"]
[EventType "team-tourn"]
[EventCountry "NET"]
[SourceTitle "playchess.com"]
[Source "ChessBase"]
[SourceQuality "1"]
[TimeControl "900+5"]

1. d4 {[%emt 0:00:00]} Nf6 {[%emt 0:00:03]} 2. c4 {[%emt 0:00:03]} g6 {[%emt 0:00:05]} 3. Nc3 {[%emt 0:00:02]} d5 {[%emt 0:00:01]} 4. cxd5 {[%emt 0:00:05]} Nxd5 {[%emt 0:00:01]} 5. e4 {[%emt 0:00:02]} Nxc3 {[%emt 0:00:01]} 6. bxc3 {[%emt 0:00:02]} Bg7 {[%emt 0:00:00]} 7. Nf3 {[%emt 0:00:03]} c5 {[%emt 0:00:02]} 8. Be3 {[%emt 0:00:05]} Qa5 {[%emt 0:00:11]} 9. Nd2 {[%emt 0:00:03]} cxd4 {[%emt 0:00:49]} 10. Nc4 {[%emt 0:00:06]} Qd8 {[%emt 0:00:01]} 11. cxd4 {[%emt 0:00:05]} O-O {[%emt 0:00:02]} 12. Be2 {[%emt 0:00:14]} b5 {[%emt 0:00:06]} 13. Ne5 {[%emt 0:01:17]} Bb7 {[%emt 0:00:07]} 14. O-O {[%emt 0:01:49]} Bxe4 {[%emt 0:03:32]} 15. Bxb5 {[%emt 0:00:37]} a6 {[%emt 0:00:31]} 16. Be2 {[%emt 0:00:52]} Nc6 {[%emt 0:00:16]} 17. Nxc6 {[%emt 0:00:18]} Bxc6 {[%emt 0:00:03]} 18. Bf3 {[%emt 0:00:29]} Bd5 {[%emt 0:00:08]} 19. Rc1 {[%emt 0:00:27]} Rb8 {[%emt 0:00:04]} 20. Bxd5 {[%emt 0:00:21]} Qxd5 {[%emt 0:00:02]} 21. Qa4 {[%emt 0:00:03]} Qb5 {[%emt 0:00:19]} 22. Qc4 {[%emt 0:01:05]} Rfd8 {[%emt 0:01:07]} 23. h3 {[%emt 0:01:06]} Bf6 {[%emt 0:00:27]} 24. Rc2 {[%emt 0:01:19]} Kg7 {[%emt 0:00:07]} 25. Rfc1 {[%emt 0:00:07]} Qb7 {[%emt 0:00:53]} 26. Qa4 {[%emt 0:00:52]} Rd6 {[%emt 0:01:24]} 27. Rc7 {[%emt 0:01:25]} Qb5 {[%emt 0:00:20]} 28. Qc4 {[%emt 0:00:55]} h5 {[%emt 0:02:42]} 29. Rc6 {[%emt 0:00:59]} Qa5 {[%emt 0:00:19]} 30. Rxd6 {[%emt 0:00:12]} exd6 {[%emt 0:00:02]} 31. Qc6 {[%emt 0:01:15]} Qa3 {[%emt 0:01:32]} 32. Qd5 {[%emt 0:00:46]} Rb5 {[%emt 0:00:56]} 33. Qc6 {[%emt 0:00:17]} g5 {[%emt 0:01:03]} 34. Qf3 {[%emt 0:00:20]} Qxa2 {[%emt 0:00:11]} 35. Qxh5 {[%emt 0:00:03]} Qe6 {[%emt 0:00:02]} 36. Qg4 {[%emt 0:00:05]} a5 {[%emt 0:00:25]} 37. Qxe6 {[%emt 0:00:03]} fxe6 {[%emt 0:00:00]} 38. Rc6 {[%emt 0:00:02]} Rd5 {[%emt 0:00:01]} 39. Ra6 {[%emt 0:00:03]} Kg6 {[%emt 0:00:05]} 40. g3 {[%emt 0:00:02]} Kf5 {[%emt 0:00:02]} 41. Kg2 {[%emt 0:00:02]} Ke4 {[%emt 0:00:02]} 42. Ra8 {[%emt 0:00:01]} Bxd4 {[%emt 0:00:02]} 43. Bd2 {[%emt 0:00:04]} Bb6 {[%emt 0:00:04]} 44. Bc1 {[%emt 0:00:04]} Rf5 {[%emt 0:00:12]} 45. f4 {[%emt 0:00:13]} gxf4 {[%emt 0:00:02]} 46. gxf4 {[%emt 0:00:04]} Rc5 {[%emt 0:00:01]} 0-1

[Event "European Online Club-ch-E 2021"]
[Site "Online"]
[Date "2021.03.27"]
[Round "8.11"]
[White "Gozzoli, Yannick"]
[Black "Ozenir, Ekin Baris"]
[Result "1/2-1/2"]
[ECO "E17"]
[WhiteElo "2600"]
[BlackElo "2309"]
[Annotator "ChessBase"]
[PlyCount "60"]
[EventDate "2021.03.27"]
[EventType "team-tourn"]
[EventCountry "NET"]
[SourceTitle "playchess.com"]
[Source "ChessBase"]
[SourceQuality "1"]
[TimeControl "900+5"]

1. d4 {[%emt 0:00:00]} Nf6 {[%emt 0:00:03]} 2. c4 {[%emt 0:00:04]} e6 {[%emt 0:00:02]} 3. Nf3 {[%emt 0:00:01]} b6 {[%emt 0:00:03]} 4. g3 {[%emt 0:00:04]} Bb7 {[%emt 0:00:02]} 5. Bg2 {[%emt 0:00:02]} Be7 {[%emt 0:00:21]} 6. O-O {[%emt 0:00:08]} O-O {[%emt 0:00:02]} 7. Re1 {[%emt 0:00:17]} Na6 {[%emt 0:00:36]} 8. Bf4 {[%emt 0:00:26]} d5 {[%emt 0:01:07]} 9. cxd5 {[%emt 0:02:56]} Nxd5 {[%emt 0:01:23]} 10. Nc3 {[%emt 0:00:02]} Nxf4 {[%emt 0:00:36]} 11. gxf4 {[%emt 0:00:00]} c5 {[%emt 0:00:05]} 12. dxc5 {[%emt 0:01:24]} Nxc5 {[%emt 0:00:49]} 13. Ne5 {[%emt 0:02:03]} Qc8 {[%emt 0:01:15]} 14. Rc1 {[%emt 0:00:47]} Bxg2 {[%emt 0:00:58]} 15. Kxg2 {[%emt 0:00:00]} Rd8 {[%emt 0:00:17]} 16. Qc2 {[%emt 0:00:04]} Qb7+ {[%emt 0:00:08]} 17. Kg1 {[%emt 0:00:43]} Rac8 {[%emt 0:00:47]} 18. Red1 {[%emt 0:00:18]} g6 {[%emt 0:02:24]} 19. Rxd8+ {[%emt 0:00:26]} Rxd8 {[%emt 0:00:41]} 20. Rd1 {[%emt 0:02:21]} Rxd1+ {[%emt 0:00:32]} 21. Qxd1 {[%emt 0:00:00]} Ne4 {[%emt 0:02:02]} 22. Qa4 {[%emt 0:01:21]} Nxc3 {[%emt 0:00:41]} 23. Qe8+ {[%emt 0:00:03]} Bf8 {[%emt 0:00:02]} 24. bxc3 {[%emt 0:00:01]} Kg7 {[%emt 0:00:55]} 25. Qc6 {[%emt 0:00:17]} Qxc6 {[%emt 0:00:31]} 26. Nxc6 {[%emt 0:00:00]} a5 {[%emt 0:00:01]} 27. c4 {[%emt 0:00:07]} Bd6 {[%emt 0:00:08]} 28. e3 {[%emt 0:00:04]} Kf6 {[%emt 0:00:03]} 29. Kg2 {[%emt 0:00:03]} e5 {[%emt 0:00:22]} 30. fxe5+ {[%emt 0:00:31]} Bxe5 {[%emt 0:00:01]} 1/2-1/2

[Event "European Online Club-ch-E 2021"]
[Site "Online"]
[Date "2021.03.27"]
[Round "8.12"]
[White "Tarlabasi, Emirhan"]
[Black "Cornette, Matthieu"]
[Result "0-1"]
[ECO "A54"]
[WhiteElo "2301"]
[BlackElo "2555"]
[Annotator "ChessBase"]
[PlyCount "70"]
[EventDate "2021.03.27"]
[EventType "team-tourn"]
[EventCountry "NET"]
[SourceTitle "playchess.com"]
[Source "ChessBase"]
[SourceQuality "1"]
[TimeControl "900+5"]

1. d4 {[%emt 0:00:00]} d6 {[%emt 0:00:02]} 2. Nf3 {[%emt 0:00:12]} Nf6 {[%emt 0:00:09]} 3. c4 {[%emt 0:00:02]} Nbd7 {[%emt 0:00:03]} 4. e3 {[%emt 0:00:04]} e5 {[%emt 0:00:22]} 5. Be2 {[%emt 0:00:07]} c6 {[%emt 0:00:05]} 6. Nc3 {[%emt 0:00:05]} Be7 {[%emt 0:00:52]} 7. O-O {[%emt 0:00:09]} O-O {[%emt 0:00:02]} 8. Qc2 {[%emt 0:00:14]} Re8 {[%emt 0:00:06]} 9. b3 {[%emt 0:00:27]} Qc7 {[%emt 0:00:33]} 10. Bb2 {[%emt 0:00:16]} b6 {[%emt 0:00:19]} 11. Rfd1 {[%emt 0:00:28]} Nf8 {[%emt 0:00:14]} 12. a4 {[%emt 0:01:06]} Ng6 {[%emt 0:01:08]} 13. a5 {[%emt 0:00:47]} bxa5 {[%emt 0:00:39]} 14. d5 {[%emt 0:01:06]} Bb7 {[%emt 0:01:21]} 15. Qd2 {[%emt 0:01:27]} Reb8 {[%emt 0:00:42]} 16. Ra3 {[%emt 0:01:34]} cxd5 {[%emt 0:00:10]} 17. cxd5 {[%emt 0:00:33]} Bd8 {[%emt 0:00:15]} 18. Bc4 {[%emt 0:01:33]} Bc8 {[%emt 0:00:32]} 19. Ne1 {[%emt 0:00:51]} Qe7 {[%emt 0:00:49]} 20. Ra2 {[%emt 0:01:31]} Nd7 {[%emt 0:01:50]} 21. Ba3 {[%emt 0:02:13]} Bb6 {[%emt 0:00:07]} 22. Ne4 {[%emt 0:01:15]} Bc7 {[%emt 0:00:02]} 23. Rc1 {[%emt 0:00:31]} f5 {[%emt 0:00:23]} 24. Ng3 {[%emt 0:00:08]} Nh4 {[%emt 0:00:34]} 25. Bd3 {[%emt 0:00:06]} Nf6 {[%emt 0:01:34]} 26. Rac2 {[%emt 0:00:02]} Bb6 {[%emt 0:00:18]} 27. Rc6 {[%emt 0:00:03]} Ne8 {[%emt 0:00:09]} 28. Qc2 {[%emt 0:00:03]} e4 {[%emt 0:00:26]} 29. Rxc8 {[%emt 0:00:12]} Rxc8 {[%emt 0:00:05]} 30. Qxc8 {[%emt 0:00:02]} Rxc8 {[%emt 0:00:04]} 31. Rxc8 {[%emt 0:00:01]} exd3 {[%emt 0:00:02]} 32. Nxd3 {[%emt 0:00:01]} Kf7 {[%emt 0:00:20]} 33. Kf1 {[%emt 0:00:13]} Qb7 {[%emt 0:00:11]} 34. Rc6 {[%emt 0:00:04]} Qa6 {[%emt 0:00:09]} 35. Rc4 {[%emt 0:00:02]} Qb5 {[%emt 0:00:10]} 0-1

[Event "European Online Club-ch-E 2021"]
[Site "Online"]
[Date "2021.03.27"]
[Round "8.13"]
[White "Mikhalevski, Victor"]
[Black "Sirosh, Ilja"]
[Result "1-0"]
[ECO "A09"]
[WhiteElo "2552"]
[BlackElo "2400"]
[Annotator "ChessBase"]
[PlyCount "99"]
[EventDate "2021.03.27"]
[EventType "team-tourn"]
[EventCountry "NET"]
[SourceTitle "playchess.com"]
[Source "ChessBase"]
[SourceQuality "1"]
[TimeControl "900+5"]

1. c4 {[%emt 0:00:00]} e6 {[%emt 0:00:02]} 2. Nf3 {[%emt 0:00:04]} d5 {[%emt 0:00:02]} 3. g3 {[%emt 0:00:02]} c5 {[%emt 0:00:02]} 4. Bg2 {[%emt 0:00:03]} Nc6 {[%emt 0:00:11]} 5. O-O {[%emt 0:00:11]} d4 {[%emt 0:00:25]} 6. e3 {[%emt 0:00:04]} Nf6 {[%emt 0:00:19]} 7. d3 {[%emt 0:00:11]} e5 {[%emt 0:01:07]} 8. exd4 {[%emt 0:00:05]} exd4 {[%emt 0:00:02]} 9. Re1+ {[%emt 0:00:03]} Be7 {[%emt 0:00:02]} 10. Bf4 {[%emt 0:00:17]} O-O {[%emt 0:00:09]} 11. Ne5 {[%emt 0:00:02]} Nxe5 {[%emt 0:00:13]} 12. Bxe5 {[%emt 0:00:02]} Nd7 {[%emt 0:03:25]} 13. Bc7 {[%emt 0:00:18]} Qxc7 {[%emt 0:00:09]} 14. Rxe7 {[%emt 0:00:02]} Qb6 {[%emt 0:00:34]} 15. Nd2 {[%emt 0:01:32]} Nf6 {[%emt 0:00:29]} 16. Ne4 {[%emt 0:00:37]} Nxe4 {[%emt 0:01:25]} 17. Bxe4 {[%emt 0:00:03]} Qxb2 {[%emt 0:01:05]} 18. a4 {[%emt 0:01:01]} Bg4 {[%emt 0:01:28]} 19. Qe1 {[%emt 0:00:40]} Rae8 {[%emt 0:00:44]} 20. Rxb7 {[%emt 0:03:04]} Qxb7 {[%emt 0:00:16]} 21. Bxb7 {[%emt 0:00:02]} Rxe1+ {[%emt 0:00:00]} 22. Rxe1 {[%emt 0:00:03]} Bf5 {[%emt 0:02:06]} 23. Be4 {[%emt 0:01:20]} Bd7 {[%emt 0:00:47]} 24. Rb1 {[%emt 0:00:08]} Bxa4 {[%emt 0:00:05]} 25. Ra1 {[%emt 0:00:03]} Bd7 {[%emt 0:00:51]} 26. Kg2 {[%emt 0:00:17]} g5 {[%emt 0:00:51]} 27. Rxa7 {[%emt 0:00:08]} Be6 {[%emt 0:00:02]} 28. f4 {[%emt 0:00:26]} gxf4 {[%emt 0:00:13]} 29. gxf4 {[%emt 0:00:03]} f5 {[%emt 0:00:05]} 30. Bc6 {[%emt 0:00:06]} Rc8 {[%emt 0:00:14]} 31. Bb5 {[%emt 0:00:07]} h6 {[%emt 0:00:04]} 32. Kg3 {[%emt 0:00:14]} Bf7 {[%emt 0:00:03]} 33. Bd7 {[%emt 0:00:05]} Rb8 {[%emt 0:00:01]} 34. Bxf5 {[%emt 0:00:02]} Rb3 {[%emt 0:00:05]} 35. Kh4 {[%emt 0:00:08]} Rb2 {[%emt 0:00:04]} 36. h3 {[%emt 0:00:04]} Rf2 {[%emt 0:00:11]} 37. Kg3 {[%emt 0:00:04]} Rf1 {[%emt 0:00:06]} 38. Rc7 {[%emt 0:00:04]} Rg1+ {[%emt 0:00:01]} 39. Kf2 {[%emt 0:00:06]} Rh1 {[%emt 0:00:07]} 40. Rxc5 {[%emt 0:00:05]} Kg7 {[%emt 0:00:03]} 41. Rc6 {[%emt 0:00:05]} Rc1 {[%emt 0:00:08]} 42. Rd6 {[%emt 0:00:03]} Rc2+ {[%emt 0:00:06]} 43. Kg3 {[%emt 0:00:03]} Rd2 {[%emt 0:00:07]} 44. Rxd4 {[%emt 0:00:06]} Kf6 {[%emt 0:00:01]} 45. Be4 {[%emt 0:00:03]} h5 {[%emt 0:00:01]} 46. c5 {[%emt 0:00:05]} Rc2 {[%emt 0:00:08]} 47. c6 {[%emt 0:00:03]} Be6 {[%emt 0:00:03]} 48. Rd8 {[%emt 0:00:13]} h4+ {[%emt 0:00:04]} 49. Kxh4 {[%emt 0:00:07]} Rh2 {[%emt 0:00:00]} 50. f5 {[%emt 0:00:06]} 1-0